Cogmind - Beta 10.2 --- EXPLORER MODE // 2021.10.20 @ 23:26:18 Player: Rowlands Result: Self-destructed Performance ------------- Evolutions (4) 2000 Regions Visited (16) 3200 Robots Destroyed (154) 770 Value Destroyed (6182) 6182 Prototype IDs (20) 400 Alien Tech Used (0) 0 Bonus (3766) 3766 TOTAL SCORE: 16318 Bonus ------- High Alert Combat Kills 13 Follower Combat Kills 1483 Network Hubs Disabled 400 Aligned with FarCom 300 Met Imprinter 300 Met Zhirov 300 Built Enhanced Grunts 300 A7 Reached Mainframe 300 Met R17 at Cetus 500 Friendly Fire -130 Cogmind --------- Core Integrity 301/850 Matter 145/300 Energy 150/150 System Corruption 17% Temperature Cool (0) Movement Core (950) Ox18 Location -6/Hub_04(d) Parts ------- > --- POWER (2) -------- Light Angular Momentum Engine > --- PROPULSION (4) --- (None) > --- UTILITY (7) ------ Large Storage Unit High-capacity Storage Unit Hacking Suite > --- WEAPON (3) ------- (None) > --- INVENTORY (18) --- Light Angular Momentum Engine Improved Hover Unit Improved Hover Unit Gravmag System Advanced Heat Sink Advanced Heat Sink Large Battery (300) Improved Particle Charger Improved Propulsion Shielding Hardened Medium Armor Plating Improved Light Armor Plating System Backup Module Shock Rifle Flak Gun Improved KE Penetrator Long-range Missile Launcher Greatsword Peak State ------------ > --- POWER ------------ Heavy Ion Engine Light Deuterium Engine > --- PROPULSION ------- Armored Huge Wheel Armored Huge Wheel > --- UTILITY ---------- High-capacity Storage Unit Trap Reconfigurator Heart of Steel > --- WEAPON ----------- Heavy Assault Rifle Gauss Rifle Advanced Assault Cannon > --- INVENTORY -------- Wheel Armored Huge Wheel Large Battery YI-UF0's Bottomless Matter Pit Advanced Targeting Computer Light Armor Plating Heavy Missile Launcher Scythe [Rating: 68] Favorites ----------- Power Heavy Ion Engine Engine Heavy Ion Engine Power Core Light Nuclear Core Propulsion Armored Huge Wheel Treads Improved Medium Treads Leg Aluminum Leg Wheel Armored Huge Wheel Hover Unit Improved Hover Unit Utility Large Storage Unit Device Improved Heat Sink Storage Large Storage Unit Processor Advanced Targeting Computer Hackware Hacking Suite Protection Hardened Medium Armor Plating Weapon Heavy Assault Rifle Energy Gun Heavy Particle Gun Energy Cannon Heavy Plasma Cannon Ballistic Gun Heavy Assault Rifle Ballistic Cannon Advanced Assault Cannon Launcher Tiamat Missile Launcher Slashing Weapon Chainsword Piercing Weapon CR-A16's Pointy Stick Build | -11 -10 -10 -10 -9 -8 -8 -7 -7 -7 -7 -6 -6 -6 -6 -6 -6 ------- Run | Scr Mat Min Exi Min Mat Sto Fac Low Low Zio Pro Fac Ext Cet Arc Hub Slots Evolved 9 | . 1 . . . 4 . 2 . . . . 2 . . . . Power 1 | . . . . . . . 1 . . . . . . . . . Propulsion 2 | . . . . . 2 . . . . . . . . . . . Utility 5 | . 1 . . . 2 . . . . . . 2 . . . . Weapon 1 | . . . . . . . 1 . . . . . . . . . Parts Attached 158 | 7 5 3 2 3 4 34 14 2 6 2 12 9 17 14 4 20 Power 21 | 1 . . . 1 . 2 6 . . . 4 . 1 2 1 3 Engine 15 | 1 . . . 1 . 1 6 . . . 2 . 1 1 . 2 Core 6 | . . . . . . 1 . . . . 2 . . 1 1 1 Reactor . | . . . . . . . . . . . . . . . . . Propulsion 41 | 2 3 . . . 2 10 5 . . . 1 . 2 3 2 11 Treads 7 | . . . . . . . . . . . . . . . 1 6 Leg 3 | 2 1 . . . . . . . . . . . . . . . Wheel 25 | . 2 . . . 2 10 5 . . . 1 . 2 3 . . Hover 6 | . . . . . . . . . . . . . . . 1 5 Flight . | . . . . . . . . . . . . . . . . . Utility 37 | 2 2 3 2 . 2 2 2 . 4 2 4 6 3 1 . 2 Device 14 | . . . . . 2 1 . . 3 2 2 1 2 . . 1 Storage 11 | 1 1 3 2 . . . . . 1 . . 1 1 1 . . Processor 3 | 1 . . . . . . . . . . 1 1 . . . . Hackware 1 | . . . . . . . . . . . . 1 . . . . Protection 8 | . 1 . . . . 1 2 . . . 1 2 . . . 1 Artifact . | . . . . . . . . . . . . . . . . . Weapon 59 | 2 . . . 2 . 20 1 2 2 . 3 3 11 8 1 4 Energy Gun 8 | . . . . . . 4 1 . . . . . 1 1 . 1 Energy Cannon 5 | . . . . . . 2 . . . . . 1 1 1 . . Ballistic Gun 18 | 2 . . . 2 . 8 . 1 1 . 1 . 1 1 1 . Ballistic Cannon 4 | . . . . . . . . 1 . . . 1 1 1 . . Launcher 13 | . . . . . . 4 . . . . 1 1 2 4 . 1 Special Weapon . | . . . . . . . . . . . . . . . . . Impact Weapon . | . . . . . . . . . . . . . . . . . Slashing Weapon 6 | . . . . . . 2 . . 1 . . . 2 . . 1 Piercing Weapon 5 | . . . . . . . . . . . 1 . 3 . . 1 Special Melee Weapon . | . . . . . . . . . . . . . . . . . Unidentified Prototypes 15 | . . 1 . . 1 5 1 . 1 1 1 2 1 . . 1 Parts Lost 77 | . . 1 . 3 . 17 4 2 1 . 10 . 5 6 11 17 Power 16 | . . . . 1 . 2 1 . . . 4 . 1 2 2 3 Propulsion 24 | . . . . . . 8 2 . . . 1 . 1 2 4 6 Utility 14 | . . 1 . . . 2 1 . . . 2 . 2 . 1 5 Weapon 23 | . . . . 2 . 5 . 2 1 . 3 . 1 2 4 3 Highest Loss Streak 12 | . . 1 . 2 . 11 1 2 1 . 5 . 2 6 11 12 Average Slot Usage (%) 88 | . 99 99 100 100 100 95 90 84 84 85 79 87 91 88 63 80 Engine 8 | . 12 12 12 12 8 1 13 14 14 14 9 6 10 6 1 . Core 3 | . . . . . . 6 . . . . 4 6 . 5 5 10 Treads 1 | . . . . . . . . . . . . . . . 2 12 Wheel 15 | . 16 25 25 25 33 29 19 14 14 14 13 12 17 13 7 . Device 11 | . . . . . 16 22 16 14 14 21 18 9 9 6 1 5 Storage 17 | . 11 16 25 25 16 16 14 14 14 14 14 15 16 24 25 18 Processor 4 | . 12 12 12 12 8 . . . . . . 6 6 6 6 6 Hackware 1 | . . . . . . . . . . . . 2 6 6 6 6 Protection 2 | . 12 7 . . . 1 4 7 5 . . 8 3 . . . Energy Gun 2 | . . . . . . 4 6 . . . . . . 5 1 4 Ballistic Gun 10 | . 25 25 25 25 16 7 14 14 13 14 9 6 3 . 2 . Ballistic Cannon 2 | . . . . . . . . 6 7 7 7 6 2 5 1 . Slashing Weapon 1 | . . . . . . 2 . . . . . . 2 . . 5 Piercing Weapon 1 | . . . . . . . . . . . 2 . 3 . . 5 Naked Turns . | . . . . . . . . . . . . . . . . . Heaviest Build 118 | 15 26 31 55 57 59 66 83 85 85 81 92 98 108 118 114 103 Greatest Support 102 | 20 24 24 24 24 48 54 60 56 56 56 56 56 60 60 54 102 Greatest Overweight (x) 32 | 4 5 1 2 2 1 6 1 1 1 1 3 1 1 3 28 32 Average Overweight (x) 1 | . . . 1 2 1 1 1 1 1 1 1 1 1 2 4 2 Largest Inventory Capacity 24 | 8 10 14 18 18 18 18 18 18 18 18 18 18 24 24 24 24 Average Capacity 18 | 7 8 11 15 18 18 18 18 18 17 18 18 18 22 24 24 23 Most Carried 24 | 7 9 13 15 18 17 18 18 18 18 18 18 18 24 23 20 24 Average Carried 17 | 3 7 10 13 15 14 16 16 16 17 17 16 16 22 18 18 20 Final Capacity 24 | 8 10 14 18 18 18 18 18 18 18 18 18 18 24 24 24 18 Final Carried 23 | 7 9 13 15 18 16 18 18 18 17 18 16 18 23 20 18 18 Class Distribution -------------------- 49% | Hacker-Mutant 14% | Hacker-Gunner 12% | Hacker-Tank 10% | Hacker-Skirmisher 8% | Scavenger-Mutant 4% | Scavenger-Skirmisher Dominant Class ---------------- Hacker-Mutant | -10/Materials Hacker-Mutant | -10/Mines Hacker-Mutant | -10/Exiles Hacker-Mutant | -9/Mines Hacker-Mutant | -8/Materials Hacker-Mutant | -8/Storage Hacker-Skirmisher | -7/Factory Hacker-Tank | -7/Lower Caves Hacker-Tank | -7/Lower Caves Hacker-Gunner | -7/Zion Hacker-Gunner | -6/Proximity Caves Hacker-Skirmisher | -6/Factory Hacker-Mutant | -6/Extension Scavenger-Mutant | -6/Cetus Hacker-Mutant | -6/Archives Hacker-Mutant | -6/Hub_04(d) Resources | -11 -10 -10 -10 -9 -8 -8 -7 -7 -7 -7 -6 -6 -6 -6 -6 -6 ----------- Run | Scr Mat Min Exi Min Mat Sto Fac Low Low Zio Pro Fac Ext Cet Arc Hub Matter Collected 5635 | 255 103 258 . 451 241 1568 391 30 150 33 618 217 447 551 140 182 Remotely . | . . . . . . . . . . . . . . . . . Salvage Created 5917 | . 88 291 . 95 73 1591 681 . 155 . 653 120 708 228 51 1183 Parts 321 | . 11 12 . 5 7 92 27 . 9 . 41 12 28 12 2 63 Haulers Intercepted 3 | . . . . . . 2 1 . . . . . . . . . Recyclers Shooed 1 | . . . . . . 1 . . . . . . . . . . Parts Field Recycled . | . . . . . . . . . . . . . . . . . Retrieved Matter . | . . . . . . . . . . . . . . . . . Parts Self-Destructed . | . . . . . . . . . . . . . . . . . Prevented . | . . . . . . . . . . . . . . . . . Kills | -11 -10 -10 -10 -9 -8 -8 -7 -7 -7 -7 -6 -6 -6 -6 -6 -6 ------- Run | Scr Mat Min Exi Min Mat Sto Fac Low Low Zio Pro Fac Ext Cet Arc Hub Combat Hostiles Destroyed 125 | . 6 7 . 3 3 26 11 . 4 . 21 2 8 12 1 21 Melee 28 | . . . . . . 5 . . . . 3 . 6 . . 14 Guns 69 | . 6 7 . 3 3 17 11 . 4 . 11 . 1 3 1 2 Cannons 17 | . . . . . . 3 . . . . 7 2 1 4 . . AOE 11 | . . . . . . 1 . . . . . . . 5 . 5 Classes Destroyed 17 | . 1 2 . . 1 8 2 . . . 2 . 1 . . . Worker 4 | . . . . . . 1 1 . . . . . . . . 2 Builder 6 | . . 1 . . . 3 . . . . . 1 1 . . . Tunneler 1 | . . . . . . . . . . . . . 1 . . . Hauler 3 | . . . . . . 2 1 . . . . . . . . . Recycler 3 | . . . . . . 1 . . . . . . 1 . . 1 Mechanic 1 | . . . . . . . 1 . . . . . . . . . Operator 6 | . . . . . . 1 1 . . . . . 1 . . 3 Watcher 5 | . . . . . . 2 . . . . . 1 1 1 . . Swarmer 28 | . 6 2 . 2 2 2 . . 2 . 7 . . 5 . . Grunt 37 | . . 4 . 1 . 9 7 . 1 . 1 . 5 1 . 8 Brawler 6 | . . . . . . 2 . . 1 . 2 . . 1 . . Duelist 1 | . . . . . . 1 . . . . . . . . . . Protector 8 | . . . . . . 2 . . . . 4 . . . . 2 Sentry 23 | . . . . . 1 10 2 . . . 2 . 3 . 1 4 Demolisher 4 | . . . . . . . . . . . 4 . . . . . Hunter 3 | . . . . . . . . . . . 1 . . 1 . 1 Programmer 7 | . . . . . . . 2 . . . . 2 . . . 3 Cetus Guard 4 | . . . . . . . . . . . . . . 4 . . Lightning 3 | . . . . . . . . . . . . . . . . 3 Best Kill Streak 9 | . 2 3 . 2 2 6 3 . 2 . 4 2 3 5 1 9 Combat Bots Only 6 | . 2 2 . 2 2 6 3 . 2 . 4 1 3 5 1 5 Max Kills in Single Turn 3 | . 2 2 . 1 1 1 1 . 1 . 1 2 1 3 1 3 Gunslinging 1 | . 1 1 . . . . . . . . . . . . . . Exploded 3 | . . . . . . 1 . . . . . . . 3 . 2 Melee 1 | . . . . . . 1 . . . . 1 . 1 . . 1 Uniques/NPCs Destroyed 1 | . . 1 . . . . . . . . . . . . . . YI-UF0 (-10/Mines) Combat | -11 -10 -10 -10 -9 -8 -8 -7 -7 -7 -7 -6 -6 -6 -6 -6 -6 -------- Run | Scr Mat Min Exi Min Mat Sto Fac Low Low Zio Pro Fac Ext Cet Arc Hub Damage Taken 9842 | . 209 345 . 156 54 1753 534 243 95 . 1544 88 846 716 888 2371 Core 1434 | . 12 78 . 43 6 386 111 18 11 . 220 . 62 74 70 343 Absorbed by Shields 301 | . . . . . . . . . . . . . . 301 . . Core Remaining (%) 55 | 100 . . . 46 . 28 . . . . 48 . . . . . Volleys Fired 350 | . 13 22 . 7 4 137 44 . 9 . 56 6 11 26 4 11 Largest 3 | . 2 2 . 2 2 2 3 . 3 . 3 3 3 3 3 1 Hottest 174 | . 40 40 . 43 43 91 101 . 99 . 115 161 173 174 108 80 Shots Fired 713 | . 26 44 . 14 8 198 132 . 24 . 147 18 29 49 12 12 Gun 534 | . 26 44 . 14 8 167 132 . 15 . 86 6 8 15 8 5 Cannon 132 | . . . . . . 16 . . 9 . 56 12 18 17 4 . Launcher 47 | . . . . . . 15 . . . . 5 . 3 17 . 7 Special . | . . . . . . . . . . . . . . . . . Kinetic 510 | . 26 44 . 14 8 106 88 . 24 . 142 12 18 16 12 . Thermal 156 | . . . . . . 77 44 . . . . 6 8 16 . 5 Explosive 47 | . . . . . . 15 . . . . 5 . 3 17 . 7 Electromagnetic . | . . . . . . . . . . . . . . . . . Robot Hit Streak 56 | . 11 20 . 6 5 46 35 . 7 . 24 7 24 56 9 21 Robot Miss Streak 2 | . 2 1 . 1 1 2 2 . 2 . 2 1 1 1 1 . Penetration Max 1 | . . . . . . . . . . . 1 . . . 1 . Secondary Targets 5 | . 1 1 . . . 2 1 . . . . . . . . . Max Gunslinging Chain 1 | . 1 1 . . . 1 1 . . . . . . . . . Shots Hit Robots 646 | . 20 38 . 11 6 168 102 . 14 . 121 11 52 35 11 57 Core Hits 337 | . 6 18 . 4 3 71 31 . 6 . 54 5 26 39 6 68 Critical Hits 14 | . . . . . . 3 . . 2 . 2 1 2 . 3 1 Critical Kills 5 | . . . . . . 1 . . . . 1 . 2 . 1 . Critical Parts Destroyed 8 | . . . . . . 2 . . 2 . 1 1 . . 1 1 Melee Attacks 126 | . . . . . . 26 . . . . 13 . 34 . . 53 Impact . | . . . . . . . . . . . . . . . . . Slashing 40 | . . . . . . 26 . . . . . . 6 . . 8 Piercing 86 | . . . . . . . . . . . 13 . 28 . . 45 Sneak Attacks 13 | . . . . . . 2 . . . . . . 4 . . 7 Combat Hostiles 4 | . . . . . . 1 . . . . . . . . . 3 Follow-up Attacks 10 | . . . . . . . . . . . . . 4 . . 6 Damage Inflicted 19146 | . 231 484 . 148 69 2983 1647 . 311 . 2854 301 2157 3070 282 4609 Guns 6859 | . 231 484 . 148 69 1915 1647 . 193 . 1330 48 85 335 208 166 Cannons 2640 | . . . . . . 305 . . 118 . 1005 253 461 424 74 . Explosions 5441 | . . . . . . 122 . . . . 145 . 383 2311 . 2480 Melee 4206 | . . . . . . 641 . . . . 374 . 1228 . . 1963 Ramming . | . . . . . . . . . . . . . . . . . Kinetic 6485 | . 231 484 . 148 69 894 935 . 311 . 2335 110 280 406 282 . Thermal 3014 | . . . . . . 1326 712 . . . . 191 266 353 . 166 Explosive 5441 | . . . . . . 122 . . . . 145 . 383 2311 . 2480 Electromagnetic . | . . . . . . . . . . . . . . . . . Impact . | . . . . . . . . . . . . . . . . . Slashing 1266 | . . . . . . 641 . . . . . . 321 . . 304 Piercing 2940 | . . . . . . . . . . . 374 . 907 . . 1659 Highest Corruption 17 | . 1 1 1 1 . 3 . . . . . 2 2 2 2 17 Average Corruption 1 | . 1 1 1 1 . 3 . . . . . 2 2 2 2 2 Corruption Purged . | . . . . . . . . . . . . . . . . . Effects 86 | . . 4 2 4 . 23 . . . . . . 16 11 3 23 Message Errors 28 | . . 4 . 2 . 6 . . . . . . 4 3 1 8 Matter Fused 3 | . . . . . . 3 . . . . . . . . . . Heat Flow Errors 14 | . . . . . . 2 . . . . . . 4 2 . 6 Energy Discharges 10 | . . . 1 . . 5 . . . . . . 2 2 . . Data Loss (minor) 15 | . . . 1 2 . 2 . . . . . . 4 1 . 5 Misfires 1 | . . . . . . . . . . . . . . . . 1 Targeting Errors 12 | . . . . . . 4 . . . . . . 1 2 2 3 Weapon Failures 3 | . . . . . . 1 . . . . . . 1 1 . . Overload Shots . | . . . . . . . . . . . . . . . . . Overflow Damage 384 | . . . . . . 25 . . . . 24 . 154 36 . 145 Projectiles 11 | . . . . . . . . . . . 3 . 8 . . . Explosions 57 | . . . . . . . . . . . . . 5 36 . 16 Melee 316 | . . . . . . 25 . . . . 21 . 141 . . 129 Knockbacks 15 | . . . . . . . . . . . 8 2 3 1 1 . Impact . | . . . . . . . . . . . . . . . . . Kinetic 14 | . . . . . . . . . . . 8 2 2 1 1 . Secondary 1 | . . . . . . . . . . . . . 1 . . . Self-Inflicted Damage 44 | . . . . . . 44 . . . . . . . . . . Shots 2 | . . . . . . 2 . . . . . . . . . . Rammed . | . . . . . . . . . . . . . . . . . Targets Rammed . | . . . . . . . . . . . . . . . . . Kicked . | . . . . . . . . . . . . . . . . . Crushed . | . . . . . . . . . . . . . . . . . Highest Temperature 511 | . 9 20 . 10 4 511 50 . 54 . 268 122 392 188 5 251 Average Temperature 94 | . 5 9 . 4 4 205 14 . 23 . 64 48 134 45 5 89 Received Heat Transfer 2883 | . . 165 . 114 18 990 189 60 45 . 195 . 435 27 48 597 Effects 10 | . . . . . . 9 . . . . . . 1 . . . Shutdowns 3 | . . . . . . 2 . . . . . . 1 . . . Energy Bleed 2 | . . . . . . 2 . . . . . . . . . . Interference 3 | . . . . . . 3 . . . . . . . . . . Matter Decay 1 | . . . . . . 1 . . . . . . . . . . Damage (core) 1 | . . . . . . 1 . . . . . . . . . . Siege Activations . | . . . . . . . . . . . . . . . . . Robots Corrupted . | . . . . . . . . . . . . . . . . . Combat Hostiles . | . . . . . . . . . . . . . . . . . Parts Fried . | . . . . . . . . . . . . . . . . . Impact Corruptions . | . . . . . . . . . . . . . . . . . Robots Melted . | . . . . . . . . . . . . . . . . . Combat Hostiles . | . . . . . . . . . . . . . . . . . Parts Melted 6 | . . . . . . 1 . . . . . 2 1 2 . . Heat Transferred 5272 | . . . . . . 2318 1369 . . . . 250 400 750 . 185 Parts Sabotaged . | . . . . . . . . . . . . . . . . . Parts Stolen . | . . . . . . . . . . . . . . . . . Parts Stripped . | . . . . . . . . . . . . . . . . . Power Chain Reactions . | . . . . . . . . . . . . . . . . . Missiles Intercepted . | . . . . . . . . . . . . . . . . . Alert | -11 -10 -10 -10 -9 -8 -8 -7 -7 -7 -7 -6 -6 -6 -6 -6 -6 ------- Run | Scr Mat Min Exi Min Mat Sto Fac Low Low Zio Pro Fac Ext Cet Arc Hub Peak Influence 478 | . 195 176 . 122 168 284 203 . . . . 131 213 339 478 208 Initial 96 | . . 1 . . 11 50 43 . . . . . 46 . 76 96 Average 77 | . 88 51 . 37 108 101 89 . . . . 41 33 151 346 56 Maximum Alert Level 2 | . . . . . . 1 1 . . . . . 1 1 2 1 Low Security (%) 93 | 100 100 100 . 100 100 87 99 . . . . 100 98 74 16 98 Level 1 4 | . . . . . . 12 . . . . . . 1 25 11 1 Level 2 1 | . . . . . . . . . . . . . . . 71 . Level 3 . | . . . . . . . . . . . . . . . . . Level 4 . | . . . . . . . . . . . . . . . . . Level 5 . | . . . . . . . . . . . . . . . . . High Security . | . . . . . . . . . . . . . . . . . Max Security . | . . . . . . . . . . . . . . . . . Squads Dispatched 21 | . . . . . . 4 7 . . . . 1 1 . . 8 Investigation 3 | . . . . . . 1 1 . . . . . . . . 1 Extermination 6 | . . . . . . . 2 . . . . 1 . . . 3 Reinforcement 9 | . . . . . . 1 3 . . . . . 1 . . 4 Assault 2 | . . . . . . 2 . . . . . . . . . . Garrison 1 | . . . . . . . 1 . . . . . . . . . Intercept . | . . . . . . . . . . . . . . . . . Construction Impeded . | . . . . . . . . . . . . . . . . . Haulers Reinforced 1 | . . . . . . . 1 . . . . . . . . . Stealth | -11 -10 -10 -10 -9 -8 -8 -7 -7 -7 -7 -6 -6 -6 -6 -6 -6 --------- Run | Scr Mat Min Exi Min Mat Sto Fac Low Low Zio Pro Fac Ext Cet Arc Hub Distress Signals 20 | . . . . . 2 5 . . . . 9 1 1 1 . 1 Communications Jammed . | . . . . . . . . . . . . . . . . . Distress Signals . | . . . . . . . . . . . . . . . . . Times Spotted 236 | . 13 7 . 7 5 45 16 1 5 . 28 10 13 21 24 41 Peak Tracking Total 16 | . 4 2 . 2 3 11 2 1 3 . 3 3 3 6 16 11 Tactical Retreats 14 | . 1 . . . . 3 . 1 1 . 1 1 . . . 6 Traps | -11 -10 -10 -10 -9 -8 -8 -7 -7 -7 -7 -6 -6 -6 -6 -6 -6 ------- Run | Scr Mat Min Exi Min Mat Sto Fac Low Low Zio Pro Fac Ext Cet Arc Hub Traps Triggered 16 | . 5 . . . 1 1 2 . . . . 3 4 . . . Indirectly . | . . . . . . . . . . . . . . . . . Trap Hack Attempts . | . . . . . . . . . . . . . . . . . Triggered . | . . . . . . . . . . . . . . . . . Disarmed . | . . . . . . . . . . . . . . . . . Reprogrammed . | . . . . . . . . . . . . . . . . . Reused 4 | . . . . . . 1 1 . . . . 2 . . . . Traps Reconfigurated 25 | . . . . . 1 11 7 . . . . 6 . . . . Traps Extracted . | . . . . . . . . . . . . . . . . . Installed . | . . . . . . . . . . . . . . . . . Triggered 8 | . . . . . 1 1 1 . . . 3 2 . . . . Machines | -11 -10 -10 -10 -9 -8 -8 -7 -7 -7 -7 -6 -6 -6 -6 -6 -6 ---------- Run | Scr Mat Min Exi Min Mat Sto Fac Low Low Zio Pro Fac Ext Cet Arc Hub Machines Disabled 12 | . 1 . . 1 . 6 . . . . 2 . . 1 . 1 Max in Single Turn 1 | . 1 . . 1 . 1 . . . . 1 . . 1 . 1 Network Hub 2 | . . . . . . . . . . . . . . . . 2 Machines Sabotaged . | . . . . . . . . . . . . . . . . . Garrisons Compromised . | . . . . . . . . . . . . . . . . . Overloaded Fab Kills . | . . . . . . . . . . . . . . . . . Fab Network Shutdowns . | . . . . . . . . . . . . . . . . . Hacking | -11 -10 -10 -10 -9 -8 -8 -7 -7 -7 -7 -6 -6 -6 -6 -6 -6 --------- Run | Scr Mat Min Exi Min Mat Sto Fac Low Low Zio Pro Fac Ext Cet Arc Hub Machines Accessed 34 | . 3 . 3 . 2 4 4 1 2 1 . 3 5 1 . 5 Terminals 26 | . 3 . . . 2 4 3 . 1 . . 2 5 1 . 5 Fabricators 1 | . . . . . . . . . . . . 1 . . . . Repair Stations 1 | . . . . . . . 1 . . . . . . . . . Recycling Units . | . . . . . . . . . . . . . . . . . Scanalyzers . | . . . . . . . . . . . . . . . . . Garrison Access . | . . . . . . . . . . . . . . . . . Total Hacks 82 | . 5 . 18 . 3 5 9 1 2 3 . 9 12 1 . 14 Successful 67 | . 4 . 18 . 2 3 6 1 2 3 . 5 8 1 . 14 Failed 15 | . 1 . . . 1 2 3 . . . . 4 4 . . . Catastrophic . | . . . . . . . . . . . . . . . . . Database Lockouts . | . . . . . . . . . . . . . . . . . Manual 9 | . . . 1 . . 3 . . . . . 2 . 3 . . Terminals 55 | . 5 . . . 3 5 6 . 1 . . 8 12 1 . 14 Fabricators 1 | . . . . . . . . . . . . 1 . . . . Repair Stations 3 | . . . . . . . 3 . . . . . . . . . Recycling Units . | . . . . . . . . . . . . . . . . . Scanalyzers . | . . . . . . . . . . . . . . . . . Garrison Access . | . . . . . . . . . . . . . . . . . Terminal Hacks 65 | . 4 . 18 . 2 3 4 1 2 3 . 5 8 1 . 14 Record 23 | . . . 18 . . . 1 . 1 . . . . . . 3 Part Schematic 8 | . . . . . . . . . . 3 . 3 2 . . . Robot Schematic 1 | . . . . . . . . . . . . . 1 . . . Prototype ID Bank 3 | . . . . . . . . . . . . . . . . 3 Open Door 6 | . . . . . . 1 . 1 1 . . . 2 1 . . Branch Access Points 3 | . . . . . . . 1 . . . . 1 . . . 1 Emergency Access Points 3 | . . . . . . . . . . . . . . . . 3 Machine Index 1 | . . . . . . . . . . . . . 1 . . . Terminal Index 1 | . . . . . . . . . . . . . . . . 1 Locate Traps 2 | . . . . . . . . . . . . . 1 . . 1 Dispatch Records 1 | . . . . . . . . . . . . . 1 . . . Recall Investigation 1 | . . . . . . . . . . . . 1 . . . . Recall Reinforcements 1 | . . . . . . . . . . . . . . . . 1 Hauler Manifests 2 | . 1 . . . . 1 . . . . . . . . . . Zone Layout 9 | . 3 . . . 2 1 2 . . . . . . . . 1 Fabricator Hacks . | . . . . . . . . . . . . . . . . . Repair Station Hacks 2 | . . . . . . . 2 . . . . . . . . . Scan Component 1 | . . . . . . . 1 . . . . . . . . . Repair 1 | . . . . . . . 1 . . . . . . . . . Recycling Unit Hacks . | . . . . . . . . . . . . . . . . . Scanalyzer . | . . . . . . . . . . . . . . . . . Garrison Access Hacks . | . . . . . . . . . . . . . . . . . Unauthorized Hacks . | . . . . . . . . . . . . . . . . . Terminals . | . . . . . . . . . . . . . . . . . Fabricators . | . . . . . . . . . . . . . . . . . Repair Stations . | . . . . . . . . . . . . . . . . . Recycling Units . | . . . . . . . . . . . . . . . . . Scanalyzers . | . . . . . . . . . . . . . . . . . Garrison Access . | . . . . . . . . . . . . . . . . . Data Cores Recovered 2 | . . . . . . 1 1 . . . . . . . . . Used . | . . . . . . . . . . . . . . . . . Hacking Detections 19 | . 2 . . . 2 3 2 . . . . 3 4 1 . 2 Full Trace Events 3 | . . . . . . 1 1 . . . . . . . . 1 Feedback Events . | . . . . . . . . . . . . . . . . . Feedback Blocked . | . . . . . . . . . . . . . . . . . Robot Schematics Acquired 1 | . . . . . . . . . . . . . 1 . . . Robots Built . | . . . . . . . . . . . . . . . . . Matter . | . . . . . . . . . . . . . . . . . Time . | . . . . . . . . . . . . . . . . . Total Robot Build Rating . | . . . . . . . . . . . . . . . . . Part Schematics Acquired 8 | . . . . . . . . . . 3 . 3 2 . . . Parts Built . | . . . . . . . . . . . . . . . . . Matter . | . . . . . . . . . . . . . . . . . Time . | . . . . . . . . . . . . . . . . . Total Part Build Rating . | . . . . . . . . . . . . . . . . . Parts Repaired 1 | . . . . . . . 1 . . . . . . . . . Time 13 | . . . . . . . 13 . . . . . . . . . Parts Recycled . | . . . . . . . . . . . . . . . . . Recycled Matter . | . . . . . . . . . . . . . . . . . Retrieved Matter . | . . . . . . . . . . . . . . . . . Retrieved Components . | . . . . . . . . . . . . . . . . . Parts Scanalyzed . | . . . . . . . . . . . . . . . . . Part Schematics Acquired . | . . . . . . . . . . . . . . . . . Parts Damaged . | . . . . . . . . . . . . . . . . . Bothacking | -11 -10 -10 -10 -9 -8 -8 -7 -7 -7 -7 -6 -6 -6 -6 -6 -6 ------------ Run | Scr Mat Min Exi Min Mat Sto Fac Low Low Zio Pro Fac Ext Cet Arc Hub Used RIF Installer . | . . . . . . . . . . . . . . . . . Robots Hacked . | . . . . . . . . . . . . . . . . . Non-combat . | . . . . . . . . . . . . . . . . . Combat . | . . . . . . . . . . . . . . . . . Robot Hacks Applied . | . . . . . . . . . . . . . . . . . Relay Couplers Released . | . . . . . . . . . . . . . . . . . Robots Rewired . | . . . . . . . . . . . . . . . . . Allies Hacked . | . . . . . . . . . . . . . . . . . Hacks Repelled . | . . . . . . . . . . . . . . . . . Allies | -11 -10 -10 -10 -9 -8 -8 -7 -7 -7 -7 -6 -6 -6 -6 -6 -6 -------- Run | Scr Mat Min Exi Min Mat Sto Fac Low Low Zio Pro Fac Ext Cet Arc Hub Total Allies 10 | . . . . 2 . 2 . . . . . . 1 5 . . Largest Group 6 | . . . . 2 2 2 . . . . . . 1 6 6 . Highest-Rated Group 626 | . . . . 46 46 62 . . . . . . 156 626 619 . Highest-Rated Ally 156 | . . . . 31 31 31 . . . . . . 156 156 156 . Total Orders . | . . . . . . . . . . . . . . . . . Ally Attacks 124 | . . . . 10 8 14 . . . . . . . 49 43 . Total Damage 3674 | . . . . 161 95 204 . . . . . . . 1394 1820 . Kills 38 | . . . . 4 3 1 . . . . . . . 10 20 . Allies Corrupted . | . . . . . . . . . . . . . . . . . Allies Melted . | . . . . . . . . . . . . . . . . . Intel | -11 -10 -10 -10 -9 -8 -8 -7 -7 -7 -7 -6 -6 -6 -6 -6 -6 ------- Run | Scr Mat Min Exi Min Mat Sto Fac Low Low Zio Pro Fac Ext Cet Arc Hub Robot Analysis Total . | . . . . . . . . . . . . . . . . . Derelict Logs Recovered 4 | . . . . 1 . . . 1 1 . 1 . . . . . Drone Launches . | . . . . . . . . . . . . . . . . . Drone Recoveries . | . . . . . . . . . . . . . . . . . Exploration | -11 -10 -10 -10 -9 -8 -8 -7 -7 -7 -7 -6 -6 -6 -6 -6 -6 ------------- Run | Scr Mat Min Exi Min Mat Sto Fac Low Low Zio Pro Fac Ext Cet Arc Hub Turns Passed 14846 | 108 637 545 649 862 164 1534 1181 706 705 1286 1202 768 1366 727 279 2127 Spaces Moved 9842 | 66 562 463 640 701 110 961 739 640 592 1164 870 612 1010 297 103 312 Core 28 | 16 1 . . . . . . . . . . . . . 5 6 Treads 331 | . . . . . . . . . . . . . . . 47 284 Legs 169 | 50 119 . . . . . . . . . . . . . . . Wheels 9292 | . 442 463 640 701 110 961 739 640 592 1164 870 612 1010 297 51 . Hover 22 | . . . . . . . . . . . . . . . . 22 Flight . | . . . . . . . . . . . . . . . . . Fastest Speed 50 | 50 90 90 100 110 100 90 100 110 110 110 110 110 110 110 110 156 Average Speed 112 | 132 98 99 100 110 100 100 106 110 110 110 111 110 110 125 235 222 Slowest Speed 1650 | 250 300 100 110 110 100 140 110 110 110 110 130 110 110 130 1450 1650 Overloaded Moves . | . . . . . . . . . . . . . . . . . Propulsion Burnouts . | . . . . . . . . . . . . . . . . . Robots Hopped 1 | . . . . . . . . . 1 . . . . . . . Cave-ins Triggered . | . . . . . . . . . . . . . . . . . Exploration Rate (%) 68 | 5 87 92 92 99 14 93 19 80 74 89 82 21 97 90 92 42 Regions Visited 16 Branch Regions 12 Pre-discovered Areas 6 | . . . . 2 . 1 . 1 1 1 . . . . . . Known Exits Taken 16 | 1 1 1 1 1 1 1 1 1 1 1 1 1 1 1 1 . Unknown Exits Taken . | . . . . . . . . . . . . . . . . . Scrap Searched 15 | . . . . 1 . . . 1 5 5 3 . . . . . Spaces Dug 7 | . . . . . . 1 . . . . . . 4 . . 2 Terrain Destroyed 288 | . . . . . . 49 . . 3 . 14 3 4 185 1 29 Melee 7 | . . . . . . 1 . . . . . . 4 . . 2 Projectile 22 | . . . . . . . . . 3 . 14 3 . 1 1 . AOE 259 | . . . . . . 48 . . . . . . . 184 . 27 Terrain Rammed . | . . . . . . . . . . . . . . . . . Walls Destroyed . | . . . . . . . . . . . . . . . . . Machines Disabled . | . . . . . . . . . . . . . . . . . Actions | -11 -10 -10 -10 -9 -8 -8 -7 -7 -7 -7 -6 -6 -6 -6 -6 -6 --------- Run | Scr Mat Min Exi Min Mat Sto Fac Low Low Zio Pro Fac Ext Cet Arc Hub Total 12754 | 83 618 501 645 779 156 1280 1037 642 627 1170 972 693 1183 598 131 1639 Wait 2086 | 4 23 5 . 61 37 96 212 . 5 . 12 57 62 258 19 1235 Move 9824 | 65 561 462 639 700 109 960 738 639 589 1163 869 611 1009 296 102 312 Hop 1 | . . . . . . . . . 1 . . . . . . . Pick Up 123 | 7 10 7 3 7 2 19 14 1 9 2 8 6 17 4 . 7 Fast Attach 47 | 7 4 2 . . . 7 7 . 4 2 2 1 1 . 2 8 Attach 69 | . 1 1 . 3 4 13 5 2 2 . 9 3 6 7 2 11 Detach 11 | . . . . . . . 1 . 1 . 1 1 . . . 7 Swap 42 | . . . 2 . . 14 2 . . . 1 5 10 7 . 1 Drop 55 | . 6 2 1 1 . 8 14 . 7 3 1 3 7 . . 2 Fire 350 | . 13 22 . 7 4 137 44 . 9 . 56 6 11 26 4 11 Melee 112 | . . . . . . 26 . . . . 13 . 28 . . 45 Ram . | . . . . . . . . . . . . . . . . . Kick . | . . . . . . . . . . . . . . . . . Crush . | . . . . . . . . . . . . . . . . . Escape Stasis 32 | . . . . . . . . . . . . . 32 . . . Rewire 2 | . . . . . . . . . . . . . . . 2 . Trap . | . . . . . . . . . . . . . . . . . Miscellaneous . | . . . . . . . . . . . . . . . . . Route ------- -11/Scrapyard -10/Materials (discovered 3 exits: *Mat x2 / *Min) -10/Mines (discovered 3 exits: *Mat x2 / *Exi) -10/Exiles (discovered 2 exits: *Min x2) -9/Mines (discovered 2 exits: *Mat x2) -8/Materials -8/Storage -7/Factory (discovered 2 exits: *Low x2) -7/Lower Caves -7/Lower Caves (discovered 2 exits: *Fac / *Zio) -7/Zion -6/Proximity Caves -6/Factory (discovered 4 exits: Low x2 / *Ext x2) -6/Extension (discovered 3 exits: *Fac x2 / *Cet) -6/Cetus (discovered 3 exits: *Fac x2 / *Arc) -6/Archives (discovered 2 exits: *Fac / *Hub) -6/Hub_04(d) (discovered 1 exit: *Fac) History --------- Turn | Location | Event 23 | -11/Scrapyard | Identified exit to Materials 23 | -11/Scrapyard | Discovered exit to Materials (range 16) 109 | -11/Scrapyard | Entered Materials 109 | -10/Materials | Evolved 1 slot: Utility x1 342 | -10/Materials | Build established: Hacker-Mutant 359 | -10/Materials | Identified exit to Mines 359 | -10/Materials | Discovered exit to Mines (range 16) 558 | -10/Materials | Identified exit to Materials 558 | -10/Materials | Discovered exit to Materials (range 5) 705 | -10/Materials | Discovered exit to Materials (range 10) 746 | -10/Materials | Entered Mines 754 | -10/Mines | Discovered exit to Materials (range 9) 975 | -10/Mines | Discovered exit to Materials (range 10) 1150 | -10/Mines | Destroyed YI-UF0 1160 | -10/Mines | Found Prototype Storage 1163 | -10/Mines | Identified YI-UF0's Bottomless Matter Pit 1245 | -10/Mines | Identified exit to Exiles 1245 | -10/Mines | Discovered exit to Exiles (range 4) 1285 | -10/Mines | Deemed a non-threat by the Exiles lab entrance 1291 | -10/Mines | Entered Exiles 1305 | -10/Exiles | Identified exit to Mines 1305 | -10/Exiles | Discovered exit to Mines (range 15) 1325 | -10/Exiles | Met 8R-AWN 1343 | -10/Exiles | Met EX-HEX 1424 | -10/Exiles | Met EX-DEC 1449 | -10/Exiles | Visited The Gauntlet 1652 | -10/Exiles | Met EX-BIN 1664 | -10/Exiles | Aligned with FarCom system 1665 | -10/Exiles | Given EX-Vault access code 1707 | -10/Exiles | Opened EX-Vault 1777 | -10/Exiles | Found Prototype Device 1798 | -10/Exiles | Warned to stay clear of 0b10 Research branches 1930 | -10/Exiles | Discovered exit to Mines (range 10) 1940 | -10/Exiles | Left Exiles lab with Trap Reconfigurator 1940 | -10/Exiles | Entered Mines 2109 | -9/Mines | Identified exit to Materials 2109 | -9/Mines | Discovered exit to Materials (range 15) 2130 | -9/Mines | Learned location of Storage (-8) 2474 | -9/Mines | Discovered exit to Materials (range 12) 2731 | -9/Mines | Joined a pair of Derelicts in attacking an 0b10 outpost 2741 | -9/Mines | Core integrity fell below 50% 2802 | -9/Mines | Entered Materials 2802 | -8/Materials | Accompanied by 2 allies 2802 | -8/Materials | Evolved 4 slots: Propulsion x2, Utility x2 2804 | -8/Materials | Identified Trap Reconfigurator 2807 | -8/Materials | Led the pair of lost Derelicts to an unsafe place 2866 | -8/Materials | Identified exit to Storage 2866 | -8/Materials | Discovered exit to Storage (range 14) 2966 | -8/Materials | Entered Storage 2989 | -8/Storage | Met a pair of Derelict thieves 3243 | -8/Storage | Core integrity fell below 50% 3270 | -8/Storage | Lost 11 parts (2p3n1u5w) 3389 | -8/Storage | Learned location of Armory (-3) 3652 | -8/Storage | Lost 3 parts (3n) 4022 | -8/Storage | Identified exit to Factory 4022 | -8/Storage | Discovered exit to Factory (range 16) 4500 | -8/Storage | Entered Factory 4500 | -7/Factory | Evolved 2 slots: Power x1, Weapon x1 4512 | -7/Factory | Garrison activated, responded to threat 4634 | -7/Factory | Identified exit to Lower Caves 4803 | -7/Factory | Build established: Scavenger-Skirmisher 5002 | -7/Factory | Repaired Wheel 5344 | -7/Factory | Build established: Hacker-Skirmisher 5681 | -7/Factory | Entered Lower Caves 5681 | -7/Lower Caves | Spotted B-75 Beast 6075 | -7/Lower Caves | Build established: Hacker-Tank 6150 | -7/Lower Caves | Learned location of Extension (-6) 6287 | -7/Lower Caves | Encountered a Warlord checkpoint 6348 | -7/Lower Caves | Identified exit to Lower Caves 6348 | -7/Lower Caves | Discovered exit to Lower Caves (range 3) 6387 | -7/Lower Caves | Entered another Lower Caves area 6482 | -7/Lower Caves | Identified exit to Factory 6482 | -7/Lower Caves | Discovered exit to Factory (range 8) 6639 | -7/Lower Caves | Spotted B-75 Beast 6707 | -7/Lower Caves | Learned location of Zion (-7) 6973 | -7/Lower Caves | Found Prototype Device 6981 | -7/Lower Caves | Identified Heart of Steel 7077 | -7/Lower Caves | Identified exit to Zion 7077 | -7/Lower Caves | Discovered exit to Zion (range 9) 7092 | -7/Lower Caves | Entered Zion 7132 | -7/Zion | Found CR-A16's Pointy Stick 7230 | -7/Zion | Identified exit to Proximity Caves 7230 | -7/Zion | Discovered exit to Proximity Caves (range 14) 7266 | -7/Zion | Build established: Hacker-Gunner 7335 | -7/Zion | Given A8's code to call for help 7352 | -7/Zion | Given the Hacking Drone Bay 7355 | -7/Zion | Found Prototype Device 7734 | -7/Zion | Learned Factory emergency access door positions 7809 | -7/Zion | Found Prototype Device 7809 | -7/Zion | Identified Phasing AFG 7972 | -7/Zion | Rebuked by Imprinter 8378 | -7/Zion | Entered Proximity Caves 8418 | -6/Proximity Caves | Learned Factory emergency access door positions 8606 | -6/Proximity Caves | Attracted the attention of an 0b10 checkpoint 8742 | -6/Proximity Caves | Spotted B-75 Beast 9224 | -6/Proximity Caves | Lost 5 parts (2p1u2w) 9445 | -6/Proximity Caves | Build established: Hacker-Mutant 9474 | -6/Proximity Caves | Core integrity fell below 50% 9553 | -6/Proximity Caves | Discovered exit to Factory (range 15) 9578 | -6/Proximity Caves | Identified Hacking Drone Bay 9580 | -6/Proximity Caves | Entered Factory 9580 | -6/Factory | Evolved 2 slots: Utility x2 9915 | -6/Factory | Build established: Hacker-Skirmisher 10002 | -6/Factory | Identified exit to Lower Caves 10002 | -6/Factory | Identified exit to Extension 10235 | -6/Factory | Found Prototype Processor 10236 | -6/Factory | Identified Exp. Targeting Computer 10298 | -6/Factory | Build established: Hacker-Tank 10348 | -6/Factory | Entered Extension 11030 | -6/Extension | Warlord forces began an assault 11122 | -6/Extension | Spotted B-75 Beast 11134 | -6/Extension | Spotted B-75 Beast 11180 | -6/Extension | Identified exit to Factory 11180 | -6/Extension | Discovered exit to Factory (range 3) 11244 | -6/Extension | Build established: Hacker-Skirmisher 11452 | -6/Extension | Rescued A7 11503 | -6/Extension | Discovered exit to Factory (range 10) 11504 | -6/Extension | Identified exit to Cetus 11504 | -6/Extension | Discovered exit to Cetus (range 6) 11714 | -6/Extension | Entered Cetus 11714 | -6/Cetus | Accompanied by 1 ally (A7) 11719 | -6/Cetus | Acquired a Cetus Manufacturing Module code from A7 11751 | -6/Cetus | Spotted Cetus Guard 11752 | -6/Cetus | Destroyed Cetus Guard 11756 | -6/Cetus | Destroyed Cetus Guard 11764 | -6/Cetus | Spotted Cetus Guard 11765 | -6/Cetus | Spotted Cetus Guard 11774 | -6/Cetus | Allies destroyed Cetus Guard 11777 | -6/Cetus | Destroyed Cetus Guard 11799 | -6/Cetus | Lost 6 parts (2p2n2w) 11821 | -6/Cetus | Discovered exit to Factory (range 16) 11950 | -6/Cetus | Escorted A7 to Cetus Mainframe 11992 | -6/Cetus | Started Cetus Manufacturing Module 12017 | -6/Cetus | Manufactured an Enhanced Grunt 12042 | -6/Cetus | Manufactured an Enhanced Grunt 12043 | -6/Cetus | Build established: Scavenger-Mutant 12067 | -6/Cetus | Manufactured an Enhanced Grunt 12092 | -6/Cetus | Manufactured an Enhanced Grunt 12117 | -6/Cetus | Manufactured an Enhanced Grunt 12319 | -6/Cetus | Identified exit to Archives 12319 | -6/Cetus | Discovered exit to Archives (range 16) 12342 | -6/Cetus | Spotted Cetus Guard 12342 | -6/Cetus | Spotted Cetus Guard 12347 | -6/Cetus | Spotted Cetus Guard 12350 | -6/Cetus | Spotted Cetus Guard 12354 | -6/Cetus | Allies destroyed Cetus Guard 12355 | -6/Cetus | Allies destroyed Cetus Guard 12357 | -6/Cetus | Destroyed Cetus Guard 12359 | -6/Cetus | Allies destroyed Cetus Guard 12362 | -6/Cetus | Discovered exit to Factory (range 16) 12368 | -6/Cetus | Met Revision 17 12441 | -6/Cetus | Entered Archives 12441 | -6/Archives | Accompanied by 6 allies (A7) 12448 | -6/Archives | Received a hacking code to weaken MAIN.C 12462 | -6/Archives | Met Zhirov 12468 | -6/Archives | Reinforcements dispatched to Archives 12501 | -6/Archives | Discovered exit to Factory (range 14) 12513 | -6/Archives | Reinforcements dispatched to Archives 12533 | -6/Archives | Zhirov detonated Archives 12564 | -6/Archives | Lost 11 parts (2p4n1u4w) 12661 | -6/Archives | Identified exit to Hub_04(d) 12661 | -6/Archives | Discovered exit to Hub_04(d) (range 16) 12720 | -6/Archives | Entered Hub_04(d) 12720 | -6/Hub_04(d) | Discovered exit to Factory (range 11) 12847 | -6/Hub_04(d) | Build established: Hacker-Mutant 12971 | -6/Hub_04(d) | Lost 3 parts (1p1n1u) 14765 | -6/Hub_04(d) | Network Hub disabled 14773 | -6/Hub_04(d) | Network Hub disabled 14811 | -6/Hub_04(d) | Spotted Lightning 14812 | -6/Hub_04(d) | Core integrity fell below 50% 14820 | -6/Hub_04(d) | Spotted Lightning 14820 | -6/Hub_04(d) | Spotted Lightning 14820 | -6/Hub_04(d) | Spotted Lightning 14820 | -6/Hub_04(d) | Spotted Lightning 14820 | -6/Hub_04(d) | Spotted Lightning 14829 | -6/Hub_04(d) | System corruption reached 10% 14832 | -6/Hub_04(d) | Spotted Lightning 14835 | -6/Hub_04(d) | Spotted Lightning 14836 | -6/Hub_04(d) | Destroyed Lightning 14838 | -6/Hub_04(d) | Destroyed Lightning 14838 | -6/Hub_04(d) | Destroyed Lightning 14842 | -6/Hub_04(d) | Spotted Lightning 14847 | -6/Hub_04(d) | Self-destructed Last Messages --------------- 14838_ System corrupted: Tiamat Missile Launcher targeting data glitched. 14838_ Destroyed Prototype Device. 14838_ Lightning destroyed. 14838_ EMDS Slug penetrates Wall. 14838_ Penetrated by EMDS Slug. 14839_ The unstable cave ceiling collapses. 14839_ Penetrated by EMDS Slug. 14840_ U-05 Engineer lays Concrete. 14840_ Penetrated by EMDS Slug. 14840_ Tiamat Missile Launcher destroyed. 14841_ The unstable cave ceiling collapses. 14842_ EMDS Slug penetrates Wall. 14844_ Critical hit. 14844_ Mic. Nuclear Core destroyed. 14845_ EMDS Slug penetrates Wall. 14845_ Lgt. Treads destroyed. 14846_ EMDS Slug penetrates Wall. 14846_ Lrg. Storage Unit destroyed. 14846_ Adv. Targeting Computer destroyed. 14847_ The unstable cave ceiling collapses. Map ----- +----------------------------------------------------+ | ????????????????????????????? | | ????????????????????????????? | | ????????????????????????????? | | ????????????????????????????? | | ????????????????????????????? | | ????????????????????????????? | | ????????????????????????????? | | ????????????????????????????? | | ????????????????????????????? | | ????????????????????????????? | | ????????????????????????????? | | ????????????????????????????? | | ????????????????????????????? | | ????????????????????????????? | | ????????????????????????????? | | ????????????Y???????????????? | | ????????????????????????????? | | ????????????????????????????? | | ???#####????????????????????? | | ???# ????????????????????? | | ???# ???? ?????????####### | | ???# """????""?###????# # | | ???# """????"" # ##### " " # | | ???# """? """ # " # | | ???# """" # "/ # | | ???# !"# @! # | | ######"" # % [% # # | | == h * # # | | #### =% h h=; # | | ???# # !%# # | | #### *; # | | **| # # ; # | | ** " ; # | | *| T# ; # | | "# ### | | ##### " | | !! #?# | | ! ## | | #""h | | ihh | | ###### ==] | | #??# /=%== | | #??# ]]/ ] # | | #??#! "" ! # | | #??# "" " | | #??# "" " # | | #??# """""""""""""" ? | | #+#### #?? ???? | | # #???? ?????? | | ?????# #??????????????? | +----------------------------------------------------+ Best States ------------- Heat Dissipation 75 Energy Generation 32 Energy Capacity 505 Matter Stores 1800 Matter Capacity 1800 Sight Range 16 Terrain Scan Density 10 Armor Coverage 450 Resistance: KI 35 Resistance: TH 35 Resistance: EX 35 Resistance: EM 35 Resistance: I 35 Resistance: S 35 Resistance: P 35 Evasion (%) 42 Targeting Accuracy 8 Recoil Reduction 4 Kinecelleration 30 Offensive Hacking 30 Item Schematics ----------------- Battle Rifle | -7/Zion | Free Enh. Flamer | -7/Zion | Free Ripper | -7/Zion | Free Thermal Shield | -6/Factory | Hacked Enh. Gauss Cannon | -6/Factory | Hacked Hvy. Plasma Cannon | -6/Factory | Hacked Disruptor Cannon | -6/Extension | Hacked Point Defense System | -6/Extension | Hacked Robot Schematics ------------------ H-66 Slayer | -6/Extension | Hacked Fabricated ------------ Nothing Alien Tech Used ----------------- None Achievements -------------- Main Advantage Project G-00 Revising The Future Challenges ------------ None Game ------ Seed ShrapnelAntimatterMultirail Manual? 0 Play Time 02:40:51 Cumulative 37.7 hours Start 2021.10.16 @ 21:32:18 End 2021.10.20 @ 23:26:18 Sessions 3 Manual Loads 0 Difficulty Explorer Special Mode None Game No. 23 Rogue 12 Adventurer 0 Explorer 11 Win Type - Total 1 Types 1/0/0/0/0/0/0/0/0 Lore% 48 Gallery% 35 Achievement% 31 Wizard Run 0 Options --------- ASCII 0 Keyboard 0 Movement Mouse Keybinds 0 Fullscreen 1 Font 18/SmallcapsGlow Map View 76x50 Tactical HUD 1 Map Filters NONE Filters NONE Steam 1 RUN: b60f599d-8b8a-4efe-9f8b-822f6611b4cf